Workbook

Sheet Refinancing Analysis (hidden)
A1: Current Loan | F1: New Loan | J1: Pay off Loan after x # of Years
A2: Original Loan Amount | B2: 160000 | F2: Remaining Loan Amount | G2: =B6 -> 149777.5639 | J2: Number of months before payoff | K2: 60
A3: Interest Rate | B3: 0.065 | F3: Interest Rate | G3: 0.0525
A4: Original Loan Term (months) | B4: =C4*12 -> 360 | C4: 30 | D4: years | F4: Origination Points | G4: 1 | J4: Present Value of Old Loan | K4: =PV(B3/12,B5-K2,B8) -> 135641.8022
A5: Remaining Term (months) | B5: =C5*12 -> 300 | C5: 25 | D5: years | F5: Origination Costs | G5: =G2/100*G4 -> 1497.775639 | J5: Present Value of New Loan | K5: =PV(G3/12,B5-K2,G23) -> 133196.7648
A6: Remaining Loan Balance | B6: =B2+CUMPRINC(B3/12,B4,B2,B4-B4+1,B4-B5,0) -> 149777.5639 | F6: Closing Costs | J6: Difference | K6: =K4-K5 -> 2445.037354
F7: Underwriting Fee | G7: 400
A8: Current payment | B8: =PMT(B3/12,B4,B2) -> -1011.308838 | F8: Appraisal Fee | G8: 350 | J8: IRR for refinance (payoff after x years) | K8: =(RATE(K2,G24,-G20,K6))*12 -> 0.3560819886
F9: Title Insurance | G9: 500
F10: Processing Fee | G10: 200
F11: Escrow Title Fee | G11: 150
F12: Title Co. Endorsement | G12: 50
F13: Flood Certification | G13: 29
F14: Recording Fee | G14: 50
F15: Tax Service Fee | G15: 79
F16: Credit Report | G16: 18
F17: Prepaid Interest | G17: 270
F18: Total Closing Costs | G18: =SUM(G7:G17) -> 2096
F20: Total Costs | G20: =G18+G5 -> 3593.775639
F23: New Payment | G23: =PMT(G3/12,B5,G2) -> -897.5386295
F24: Difference in Payments | G24: =-B8+G23 -> 113.770208
F26: Rate of return for New Loan | G26: =(RATE(B5,G24,-G20))*12 -> 0.3798577914

Sheet Real Fed Income Tax (hidden)
A1: Taxable income is over - | C1: The tax is: | D1: Of the amount over -
A2: 0 | B2: 17400 | C2: $0 + 10% | D2: 0 | F2: =IF(AND($B$9>A2,$B$9<B2),$B$9*MID(C2,6,2)/100,0) -> 0
A3: 17400 | B3: 70700 | C3: 1,740.00 + 15% | D3: 17400 | F3: =IF(AND($B$9>A3,$B$9<B3),$B$9*MID(C3,12,2)/100+LEFT(C3,5)*1,0) -> 0
A4: 70700 | B4: 142700 | C4: 9,735.00 + 25% | D4: 70700 | F4: =IF(AND($B$9>A4,$B$9<B4),$B$9*MID(C4,12,2)/100+LEFT(C4,5)*1,0) -> 34735
A5: 142700 | B5: 217450 | C5: 27,735.00 + 28% | D5: 142700 | F5: =IF(AND($B$9>A5,$B$9<B5),$B$9*MID(C5,13,2)/100+LEFT(C5,6)*1,0) -> 0
A6: 217450 | B6: 388350 | C6: 48,665.00 + 33% | D6: 217450 | F6: =IF(AND($B$9>A6,$B$9<B6),$B$9*MID(C6,13,2)/100+LEFT(C6,6)*1,0) -> 0
A7: 388350 | B7: - | C7: 105,062.00 + 35% | D7: 388350 | F7: =IF($B$9>A7,$B$9*MID(C7,14,2)/100+LEFT(C7,7)*1,0) -> 0
A9: Income: | B9: 100000
A10: Federal Income Taxes: | B10: 34735

Sheet Get Interest Rates
A1: Zip Code | B1: 84058
A3: Your Search | B3: Results Range | C3: Bankrate.com | D3: Bankrate.com
C4: National Average | D4: Site Average
A5: 30 yr fixed mtg, 0 Points | B5: 3.25% APR - 4.21% APR | C5: 3.52% RATE | D5: 3.40% RATE
A7: =C3 & " " & C4 -> Bankrate.com National Average | B7: =LEFT(C5,5)*1 -> 0.0352
A8: =D3 & " " & D4 -> Bankrate.com Site Average | B8: =LEFT(D5,5)*1 -> 0.034
A10: =VALUE(B1)&" Interest Rate Range" -> 84058 Interest Rate Range | B10: =LEFT(B5,5)*1 -> 0.0325 | C10: =MID(B5,12,6)*1 -> 0.0421
A11: =VALUE(B1)&" Average Interest Rate" -> 84058 Average Interest Rate | B11: =AVERAGE(B10,C10) -> 0.0373
C13: Last Updated: | D13: 2012-12-05T09:31:00
A14: **These rates are pulled from Bankrate.com

Sheet Economic conditions
A1: U.S. Monthly Economic Data | B1: May | C1: June | D1: July | E1: Aug | F1: Sept | G1: Oct | I1: KEY ECONOMIC INDICATORS
B2: 2012 | C2: 2012 | D2: 2012 | E2: 2012 | F2: 2012 | G2: 2012 | I2: Slight Decrease in Unemployment
A3: Unemployment Rate (1) | B3: 8.2 | C3: 8.2 | D3: 8.3 | E3: 8.1 | F3: 7.8 | G3: 7.9 | I3: Slight Increase in CPI
A4: Change in Payroll Employment (2) | B4: 87 | C4: 45 | D4: 181 | E4: 192 | F4: 148 | G4: 171 | I4: Great Productivity Improvement
A5: Average Hourly Earnings (3) | B5: 23.43 | C5: 23.5 | D5: 23.52 | E5: 23.52 | F5: 23.59 | G5: 23.58
A6: Consumer Price Index (4) | B6: -0.3 | C6: 0 | D6: 0 | E6: 0.6 | F6: 0.6 | G6: 0.1
A7: Producer Price Index (5) | B7: -1 | C7: 0.2 | D7: 0.3 | E7: 1.7 | F7: 1.1 | G7: -0.2
A8: U.S. Import Price Index (6) | B8: -1.5 | C8: -2.3 | D8: -0.7 | E8: 1.2 | F8: 1.1 | G8: 0.5
A9: Footnotes
A10: (1) In percent, seasonally adjusted. Annual averages are available for Not Seasonally Adjusted data.
A11: (2) Number of jobs, in thousands, seasonally adjusted.
A12: (3) Average Hourly Earnings for all employees on private nonfarm payrolls.
A13: (4) All items, U.S. city average, all urban consumers, 1982-84=100, 1-month percent change, seasonally adjusted.
A14: (5) Finished goods, 1982=100, 1-month percent change, seasonally adjusted.
A15: (6) All imports, 1-month percent change, not seasonally adjusted.
A16: (R) Revised
A17: (P) Preliminary
A19: U.S. Quarterly Economic Data | B19: 3rd Qtr | C19: 4th Qtr | D19: 1st Qtr | E19: 2nd Qtr | F19: 3rd Qtr
B20: 2011 | C20: 2011 | D20: 2012 | E20: 2012 | F20: 2012
A21: Employment Cost Index (1) | B21: 0.3 | C21: 0.5 | D21: 0.4 | E21: 0.5 | F21: 0.4
A22: Productivity (2) | B22: 0.6 | C22: 2.8 | D22: -0.5 | E22: 1.9 | F22: 1.9
A23: Footnotes
A24: (1) Compensation, all civilian workers, quarterly data, 3-month percent change, seasonally adjusted.
A25: (2) Output per hour, nonfarm business, quarterly data, percent change from previous quarter at annual rate, seasonally adjusted.
A26: (R) Revised
A28: Data taken from http://www.bls.gov/eag/eag.us.htm

Sheet Find Houses (hidden)
A1: Skip to content
A2: Zillow Real Estate
A3: Homes
A5: West Chester Homes For Sale
A6: West Chester For Sale By Owner
A7: West Chester Foreclosures
A8: West Chester Open Houses
A9: West Chester New Homes
A10: West Chester Recent Home Sales
A11: West Chester Most Expensive Homes
A13: Post a Home For Free
A14: For Sale by Owner
A15: For Sale by Agent
A16: Make Me Move
A17: Rentals
A19: West Chester Apartments For Rent
A20: West Chester Houses For Rent
A21: West Chester Most Expensive Rentals
A23: Tools
A24: Post a Rental For Free
A25: Mortgage Rates
A27: West Chester Mortgage Rates
A28: Ohio Mortgage Rates
A29: West Chester Refinance
A30: Ohio Refinance
A32: Calculators
A33: Mortgage Calculator
A34: Refinance Calculator
A35: Affordability Calculator
A37: Popular
A38: FHA Loan
A39: Refinance
A40: Home Equity Loan
A42: Tools
A43: Get Custom Quotes
A44: Lender Signup
A45: Help Center
A46: Advice
A48: Real Estate Advice
A49: Zillow FAQs
A50: Home Buying Advice
A51: Home Selling Advice
A52: Mortgage Advice
A53: Rental Advice
A54: Foreclosure Center
A56: Tools
A57: Ask a Question
A58: Find a Pro
A60: Find a Real Estate Professional
A61: West Chester Real Estate Agents
A62: West Chester Mortgage Lenders
A63: West Chester Property Managers
A64: West Chester Home Improvement Pros
A65: Review an Agent, Lender or Pro
A67: Marketing on Zillow
A68: Real Estate Agent Advertising
A69: Join the Professional Directory
A70: Local Info
A72: West Chester Overview
A73: West Chester Home Prices & Values
A74: West Chester Demographics
A75: West Chester Photos
A76: West Chester Schools
A77: West Chester Homes
A78: Ohio Home Prices & Values
A80: Popular
A81: Real Estate Market Reports
A82: Compare Places
A83: Blogs
A85: Zillow Blog
A86: Zillow Pros Blog
A87: Zillow Research
A88: Zillow Engineering
A89: More ▼
A91: What Zillow Offers
A92: Dueling Digs
A93: Real Estate Advertising
A94: Widgets, Badges & Data
A95: Zillow Visuals
A96: Help
A98: For Pros ▼
A100: Agents
A101: Rental Pro
A102: Mobile
A103: Sign In
A104: Find home values and listings Search
A105: Show:
A106: Filter Save Search
A109: For Sale
A111: By Agent
A112: By Owner
A113: New Homes
A114: Foreclosures
A116: These properties are currently listed for sale. They are owned by a bank or a lender who took ownership through foreclosure proceedings. These are also known as bank-owned or real estate owned (REO).
A117: Monthly Payment
A118: What's this?
A119: Close
A121: What Does Monthly Payment Mean?
A122: Enter a price range and the monthly payment shown will apply to for-sale or for-rent listings, if both filters are selected. Or, enter a monthly payment range (e.g., $1,500-$2,000) to see available rentals or homes for sale in that price range. Monthly payment is calculated from using current Zillow Mortgage Marketplace quotes for 30-year fixed rate at 3.22%, with 20% down and includes principal and interest.
A124: Go
A125: Pre-Market
A126: Properties that may be coming to the market soon.
A128: Foreclosed
A129: Pre-Foreclosure
A131: The lender initiated foreclosure proceedings on these properties because the owners were in default on their loan obligations. Pre-foreclosures also include properties for which a foreclosure auction is scheduled.
A132: FREE account required
A133: Make Me Move
A134: For Rent
A135: Recently Sold
A136: Home type
A138: Single Family
A139: Condo/Apartment
A140: Multi Family
A141: Manufactured
A142: Lots/Land
A143: Show only
A145: Open Houses only
A146: Pets Allowed
A147: On-Site Parking
A148: In-Unit Laundry
A149: Close
A150: Price
A152: Go
A153: Rent
A155: Go
A156: Beds
A157: Baths
A158: Square Feet
A160: Go
A161: Lot Size
A163: Go
A164: Year Built
A166: Go
A167: Days on/Sold in last
A168: Keywords
A169: Apply
A170: ▾ more filters
A171: Save this search and be notified when new listings are added.
A173: A Rent Zestimate® is Zillow's estimated monthly rental price, computed using a proprietary formula. It is a starting point in determining the monthly rental price for a specific property. Learn more | Post a home for rent for FREE
A175: A Zestimate® home valuation is Zillow's estimated market value. It is not an appraisal. Use it as a starting point to determine a home's value. Learn more | Post a home for sale for FREE
A177: Make Me Move is a free and easy way to tell others the price you'd be willing to sell your home for.
A179: This property is scheduled to be sold at a foreclosure auction. Learn more
A181: The lender initiated foreclosure proceedings on these properties because the owners were in default on their loan obligations.
A183: These properties are owned by a bank or a lender who took ownership through foreclosure proceedings. They may soon be listed for sale.
A185: A Foreclosure Estimate is the price Zillow predicts a property will sell for if it's listed as a foreclosure (bank-owned property or real estate owned). Learn more
A186: West Chester
A187: Sort: Days on Zillow ▾
A189: Featured
A190: Days on Zillow
A191: Price (Low to High)
A192: Price (High to Low)
A193: Bedrooms
A194: Bathrooms
A195: Living Area
A196: Year Built
A197: Lot Area
A198: Zestimate (High to Low)
A199: Zestimate (Low to High)
A200: Loading results...
A201: 6140 Cherry Lane Farm Dr, West Chester, OH
A202: 15 Photos
A203: 6140 Cherry Lane Farm Dr, West Chester, OH
A205: House For Sale:$273,900
A206: Zestimate®: $257,438
A207: Est. Mortgage: $1,188/mo
A209: See current rates
A211: Beds: 4
A212: Baths: 4.0
A213: Sqft: 2,835
A214: Lot: --
A215: Days on Zillow: 13
A216: Built: 2001
A217: Single Family
A218: Comey & Shepherd Re...
A220: Maps
A221: Save
A222: Comps
A223: 5990 Glennshire Ct, West Chester, OH
A224: 11 Photos
A225: 5990 Glennshire Ct, West Chester, OH
A227: Foreclosure:$159,900
A228: Price Cut: $25,000(Nov 15)
A229: Foreclosure Est.: $130,665
A230: Zestimate®: $169,695
A231: Est. Mortgage: $693/mo
A233: Beds: 4
A234: Baths: 3.0
A235: Sqft: 1,854
A236: Lot: 14,344
A237: Days on Zillow: 47
A238: Built: 1999
A239: Single Family
A240: Coldwell Banker Her...
A242: Maps
A243: Save
A244: Comps
A245: 5996 Glen Trace Ln, West Chester, OH
A246: 11 Photos
A247: 5996 Glen Trace Ln, West Chester, OH
A249: House For Sale:$199,000
... 521 more rows

Sheet Found Properties
A1: Inputs
A2: City | B2: west-chester | D2: Address: | E2: 6140 Cherry Lane Farm Dr, West Chester, OH | F2: 5990 Glennshire Ct, West Chester, OH | G2: 5996 Glen Trace Ln, West Chester, OH | H2: 4411 Tylers Creek Dr, West Chester, OH | I2: 7134 Summerhill Dr, West Chester, OH | J2: 6219 Strathaven Dr, West Chester, OH | K2: 7623 Overglen Dr, West Chester, OH | L2: 7249 Londondale Dr, West Chester, OH | M2: 7684 Hunters Trl, West Chester, OH | N2: 7560 Tylers Hill Ct, West Chester, OH
A3: State | B3: OH | D3: Price: | E3: 273900 | F3: 159900 | G3: 199000 | H3: 389999 | I3: 159999 | J3: 229900 | K3: 398000 | L3: 322905 | M3: 374900 | N3: 310000
A4: Price | B4: 0-450000 | D4: Beds: | E4: 4 | F4: 4 | G4: 4 | H4: 4 | I4: 4 | J4: 5 | K4: 5 | L4: 5 | M4: 4 | N4: 4
A5: Bedrooms | B5: 4+ | D5: Baths: | E5: 4 | F5: 3 | G5: 2.5 | H5: 4 | I5: 2.5 | J5: 4 | K5: 4 | L5: 5 | M5: 3 | N5: 2.5
A6: Bathrooms | B6: 2+ | D6: Square Feet: | E6: 2835 | F6: 1854 | G6: 2542 | H6: 3648 | I6: 2450 | J6: 2128 | K6: 4900 | L6: 4949 | M6: 4125 | N6: 2788
A7: Square feet | B7: 2500- | D7: Lot Size: | E7: -- | F7: 14344 | G7: 15681 | H7: -- | I7: 8123 | J7: 15119 | K7: -- | L7: 21827 | M7: -- | N7: 14679
A8: Lot size | B8: 0- | D8: Year Built: | E8: 2001 | F8: 1999 | G8: 2005 | H8: 2002 | I8: 2005 | J8: 2003 | K8: 2004 | L8: 2004 | M8: 2006 | N8: 2004
A9: Year built | B9: 1999- | D9: Price/Sq Feet | E9: 96.61375661 | F9: 86.24595469 | G9: 78.28481511 | H9: 106.9076206 | I9: 65.30571429 | J9: 108.0357143 | K9: 81.2244898 | L9: 65.24651445 | M9: 90.88484848 | N9: 111.1908178

Sheet Investment Analysis
A2: Inputs | J2: Found Properties | L2: NPV | M2: IRR
A3: Purchase Price | B3: 349900 | J3: Property 1 | K3: 273900
A4: Land Value | B4: 200000 | J4: Property 2 | K4: 159900
A5: Improvement Value | B5: =B3-B4 -> 149900 | J5: Property 3 | K5: 199000
J6: Property 4 | K6: 389999
A7: Investors Criteria and Contribution | J7: Property 5 | K7: 159999
A8: Initial Equity Investment | B8: 60000 | J8: Property 6 | K8: 229900
A9: Investors Required Rate of Return | B9: 0.1 | J9: Property 7 | K9: 398000
J10: Property 8 | K10: 322905
A11: Financing Information | J11: Property 9 | K11: 374900
A12: Mortgage Amount | B12: =B3-B8 -> 289900 | J12: Property 10 | K12: 310000
A13: Financing Term (Years) | B13: 25
A14: No. of Payment Per Year | B14: 12
A15: Annual Mortgage Interest Rate | B15: 0.0373
A16: Private Mortgage Insurance (yearly) | B16: 0
A18: Tax Information
A19: Depreciable Life (27.5 Res/39 Comm) | B19: 27.5
A20: Marginal Income Tax Rate | B20: 0.25
A21: Capital Gains Tax Rate | B21: 0.2
A22: Recapture Tax Rate | B22: 0.25
A23: Investor's Modified Adjusted Gross Inc. | B23: 106000
A24: Investor's Participation, Active? Y/N | B24: y
A26: Forecast Operating Data
A27: First Year forecast PGI | B27: 40000 | E27: Operating Expenses
A28: Annual Growth in PGI | B28: 0.04 | E28: Property Taxes | F28: 4000
A29: % Annual Vacancy | B29: 0.03 | E29: Insurance | F29: 1400
A30: % Operating Expenses of EGI | B30: 0.2152061856 | E30: Property Mgmt fees | F30: 800
E31: HOA Fees | F31: 350
A32: Future Sales Information | E32: Maintenance | F32: 1800
A33: Forecast Future Sales Price | B33: 390000 | E33: Total | F33: =SUM(F28:F32) -> 8350
A34: Future Selling Expenses | B34: 0.08
A36: Analysis | B36: 0 | C36: 1 | D36: 2 | E36: 3 | F36: 4 | G36: 5 | I36: Termination (Reversion) Statement
A37: Potential Gross Income | C37: =B27 -> 40000 | D37: =C37*(1+$B$28) -> 41600 | E37: =D37*(1+$B$28) -> 43264 | F37: 44994.56 | G37: 46794.3424 | I37: Gross Future Sales Price | J37: =$B$33 -> 390000
A38: Less Vacancy & Collection Loss | C38: =-C37*$B$29 -> -1200 | D38: =-D37*$B$29 -> -1248 | E38: -1297.92 | F38: -1349.8368 | G38: -1403.830272 | I38: Less Selling Expenses | J38: =-$B$34*$B$33 -> -31200
A39: Plus Other Income | I39: Net Sales Proceeds | J39: =SUM(J37:J38) -> 358800
A40: Effective Gross Income | C40: =SUM(C37:C39) -> 38800 | D40: =SUM(D37:D39) -> 40352 | E40: 41966.08 | F40: 43644.7232 | G40: 45390.51213 | I40: Less Mortgage Balance | J40: =-PV($B$15/$B$14,($B$13-5)*$B$14,$C$44/$B$14,0,0) -> -251299.7344
A41: LessOperating Expenses | C41: =-C40*$B$30 -> -8350 | D41: =-D40*$B$30 -> -8684 | E41: -9031.36 | F41: -9392.6144 | G41: -9768.318976 | I41: Before Tax Cash on Sale | J41: =SUM(J39:J40) -> 107500.2656
A42: Net Operating Income | C42: =SUM(C40:C41) -> 30450 | D42: =SUM(D40:D41) -> 31668 | E42: 32934.72 | F42: 34252.1088 | G42: 35622.19315
A43: Less Private Mortage Insurance | C43: =$B$16 -> 0 | D43: =$B$16 -> 0 | E43: 0 | F43: 0 | G43: 0 | I43: Net Sales Proceeds | J43: =J39 -> 358800
A44: Less Annualized Mortgage Payments | C44: =PMT($B$15/$B$14,($B$13*$B$14),$B$12,0,0)*$B$14 -> -17847.74933 | D44: =PMT($B$15/$B$14,($B$13*$B$14),$B$12,0,0)*$B$14 -> -17847.74933 | E44: -17847.74933 | F44: -17847.74933 | G44: -17847.74933 | I44: Less Cost Basis | J44: =-$B$3 -> -349900
A45: Before Tax Cash Flows | C45: =SUM(C42:C44) -> 12602.25067 | D45: =SUM(D42:D44) -> 13820.25067 | E45: 15086.97067 | F45: 16404.35947 | G45: 17774.44382 | I45: Capital Gain (Economic Gain) | J45: =SUM(J43:J44) -> 8900
A46: Less Annual Depreciation | C46: =-$B$5/$B$19 -> -5450.909091 | D46: =-$B$5/$B$19 -> -5450.909091 | E46: -5450.909091 | F46: -5450.909091 | G46: -5450.909091 | I46: X Capital Gains Rate | J46: =$B$21 -> 0.2
A47: Plus Annual Principal Paid | C47: =-CUMPRINC($B$15/$B$14,$B$13*$B$14,$B$12,1,12,0) -> 7155.994405 | D47: =-CUMPRINC($B$15/$B$14,$B$13*$B$14,$B$12,13,24,0) -> 7427.523804 | E47: =-CUMPRINC($B$15/$B$14,$B$13*$B$14,$B$12,25,36,0) -> 7709.356204 | F47: =-CUMPRINC($B$15/$B$14,$B$13*$B$14,$B$12,37,48,0) -> 8001.882545 | G47: =-CUMPRINC($B$15/$B$14,$B$13*$B$14,$B$12,49,60,0) -> 8305.508601 | I47: Capital Gains Taxes | J47: =IF(J45<=0,0,J45*J46) -> 1780
A48: Taxable Income | C48: =SUM(C45:C47) -> 14307.33598 | D48: =SUM(D45:D47) -> 15796.86538 | E48: 17345.41778 | F48: 18955.33292 | G48: 20629.04333
A49: Less Taxes from BTCF | C49: =IF(C48>0,-C48*$B$20,0) -> -3576.833996 | D49: =IF(D48>0,-D48*$B$20,0) -> -3949.216346 | E49: -4336.354446 | F49: -4738.833231 | G49: -5157.260833 | I49: Accumulated Depreciation | J49: =$C$46*5 -> -27254.54545
A50: Savings from Passive Actitivity Loss | C50: =IF($B$24="y",IF(C48<0, IF($B$23<=100000,IF(-C48>25000,25000*$B$20,-C48*$B$20),IF($B$23<150000,IF(-C48>0.5*(150000-$B$23),0.5*(150000-$B$23)*$B$20,-C48*$B$20),0)),0),0) -> 0 | D50: =IF($B$24="y",IF(D48<0, IF($B$23<=100000,IF(-D48>25000,25000*$B$20,-D48*$B$20),IF($B$23<150000,IF(-D48>0.5*(150000-$B$23),0.5*(150000-$B$23)*$B$20,-D48*$B$20),0)),0),0) -> 0 | E50: 0 | F50: 0 | G50: 0 | I50: X Recapture Tax Rate | J50: =$B$22 -> 0.25
A51: After-tax Cash Flow from Operations | C51: =C45+C49+C50 -> 9025.416673 | D51: =D45+D49+D50 -> 9871.034323 | E51: 10750.61622 | F51: 11665.52624 | G51: 12617.18299 | I51: Recapture Taxes | J51: =IF(J45>0,J49*J50,MAX((J49+J45)*J50,0)) -> -6813.636364
A52: Initial Equity Investment | B52: =-$B$8 -> -60000
A53: After-tax Cash on Sale | G53: =J56 -> 98906.6292 | I53: Before Tax Cash on Sale | J53: =J41 -> 107500.2656
A54: Total After-tax Cash Flow | B54: =SUM(B51:B53) -> -60000 | C54: =SUM(C51:C53) -> 9025.416673 | D54: =SUM(D51:D53) -> 9871.034323 | E54: 10750.61622 | F54: 11665.52624 | G54: 111523.8122 | I54: Less Capital Gains Taxes | J54: =-J47 -> -1780
I55: Less Recapture Taxes | J55: =J51 -> -6813.636364
I56: After Tax Cash on Sale | J56: =SUM(J53:J55) -> 98906.6292
A57: Investment Measures
A58: First Year Measures
A59: Payback Period (years) | B59: =B8/C54 -> 6.647892521
A60: Profit Margin | B60: =C54/C40 -> 0.2326138318
A61: Default or Breakeven Ratio | B61: =-(C41+C44)/C40 -> 0.675199725
A62: Operating Expense Ratio | B62: =-C41/C40 -> 0.2152061856
A63: Debt Coverage Ratio | B63: =-C42/C44 -> 1.706097471
A64: Loan to Value Ratio | B64: =B12/B3 -> 0.828522435
A65: Effective Gross Income Multiplier | B65: =B3/C40 -> 9.018041237
A66: Capitalization Rate | B66: =C42/B3 -> 0.08702486425
A67: Before Tax Cash on Cash Return | B67: =-C45/B54 -> 0.2100375112
A68: After Tax Cash on Cash Return | B68: =-C54/B54 -> 0.1504236112
A70: Holding Period Measures
A71: Net Present Value | B71: =NPV($B$9,C54:G54)+B54 -> 41655.12534
A72: Internal Rate of Return | B72: =IRR(B54:G54,0.1) -> 0.2519205072
